Workbook

Sheet About
B2: This is a basic proof-of-concept for a sampling template, created for audit.
B3: It was created by David Lyford-Smith of ICAEW and is © ICAEW 2020.
B5: The following cell styles are used in this workbook. To change them, amend the styles from the Home => Cell Styles menu.
C6: Inputs
C7: Calculations
C8: Outputs
B10: This workbooks uses VBA script (aka macros). Some devices or organisations do not allow unknown script to run for security reasons.
B11: This workbook should be usable in any version of Excel from Excel 2007 onwards.

Sheet Sampling template
C2: Number of items: | D2: =ROWS(Sampling[Item number]) -> 100 | G2: Sample: | H2: Number | I2: Identifier | J2: Value
C3: Total value: | D3: =SUM(Sampling[Value]) -> 535329.15 | H3: =ROW()-ROW(Picked[[#Headers],[Number]]) -> 1
C4: Total value sampled: | D4: =SUM(Picked[Value]) -> 0 | E4: =D4/D3 -> 0
C8: v Paste your data in these columns v
A10: Item number | B10: Cumulative value | C10: Item identifier | D10: Value
A11: =ROW()-10 -> 1 | B11: =SUM(INDEX(Sampling[Value],1):Sampling[[#This Row],[Value]])-Sampling[[#This Row],[Value]] -> 0 | C11: 001 | D11: 7848.96
A12: =ROW()-10 -> 2 | B12: =SUM(INDEX(Sampling[Value],1):Sampling[[#This Row],[Value]])-Sampling[[#This Row],[Value]] -> 7848.96 | C12: 002 | D12: 2013.38
A13: 3 | B13: =SUM(INDEX(Sampling[Value],1):Sampling[[#This Row],[Value]])-Sampling[[#This Row],[Value]] -> 9862.34 | C13: 003 | D13: 6056.52
A14: 4 | B14: =SUM(INDEX(Sampling[Value],1):Sampling[[#This Row],[Value]])-Sampling[[#This Row],[Value]] -> 15918.86 | C14: 004 | D14: 8894.32
A15: 5 | B15: =SUM(INDEX(Sampling[Value],1):Sampling[[#This Row],[Value]])-Sampling[[#This Row],[Value]] -> 24813.18 | C15: 005 | D15: 115.96
A16: 6 | B16: =SUM(INDEX(Sampling[Value],1):Sampling[[#This Row],[Value]])-Sampling[[#This Row],[Value]] -> 24929.14 | C16: 006 | D16: 1962.02
A17: 7 | B17: =SUM(INDEX(Sampling[Value],1):Sampling[[#This Row],[Value]])-Sampling[[#This Row],[Value]] -> 26891.16 | C17: 007 | D17: 3338.81
A18: 8 | B18: =SUM(INDEX(Sampling[Value],1):Sampling[[#This Row],[Value]])-Sampling[[#This Row],[Value]] -> 30229.97 | C18: 008 | D18: 7176.33
A19: 9 | B19: =SUM(INDEX(Sampling[Value],1):Sampling[[#This Row],[Value]])-Sampling[[#This Row],[Value]] -> 37406.3 | C19: 009 | D19: 3987.78
A20: 10 | B20: =SUM(INDEX(Sampling[Value],1):Sampling[[#This Row],[Value]])-Sampling[[#This Row],[Value]] -> 41394.08 | C20: 010 | D20: 9691.87
A21: 11 | B21: =SUM(INDEX(Sampling[Value],1):Sampling[[#This Row],[Value]])-Sampling[[#This Row],[Value]] -> 51085.95 | C21: 011 | D21: 4298.97
A22: 12 | B22: =SUM(INDEX(Sampling[Value],1):Sampling[[#This Row],[Value]])-Sampling[[#This Row],[Value]] -> 55384.92 | C22: 012 | D22: 4588.64
A23: 13 | B23: =SUM(INDEX(Sampling[Value],1):Sampling[[#This Row],[Value]])-Sampling[[#This Row],[Value]] -> 59973.56 | C23: 013 | D23: 5581.39
A24: 14 | B24: =SUM(INDEX(Sampling[Value],1):Sampling[[#This Row],[Value]])-Sampling[[#This Row],[Value]] -> 65554.95 | C24: 014 | D24: 6628.3
A25: 15 | B25: =SUM(INDEX(Sampling[Value],1):Sampling[[#This Row],[Value]])-Sampling[[#This Row],[Value]] -> 72183.25 | C25: 015 | D25: 9845.74
A26: 16 | B26: =SUM(INDEX(Sampling[Value],1):Sampling[[#This Row],[Value]])-Sampling[[#This Row],[Value]] -> 82028.99 | C26: 016 | D26: 7575.34
A27: 17 | B27: =SUM(INDEX(Sampling[Value],1):Sampling[[#This Row],[Value]])-Sampling[[#This Row],[Value]] -> 89604.33 | C27: 017 | D27: 7849.17
A28: 18 | B28: =SUM(INDEX(Sampling[Value],1):Sampling[[#This Row],[Value]])-Sampling[[#This Row],[Value]] -> 97453.5 | C28: 018 | D28: 2777.11
A29: 19 | B29: =SUM(INDEX(Sampling[Value],1):Sampling[[#This Row],[Value]])-Sampling[[#This Row],[Value]] -> 100230.61 | C29: 019 | D29: 9627.58
A30: 20 | B30: =SUM(INDEX(Sampling[Value],1):Sampling[[#This Row],[Value]])-Sampling[[#This Row],[Value]] -> 109858.19 | C30: 020 | D30: 9527.28
A31: 21 | B31: =SUM(INDEX(Sampling[Value],1):Sampling[[#This Row],[Value]])-Sampling[[#This Row],[Value]] -> 119385.47 | C31: 021 | D31: 4517.13
A32: 22 | B32: =SUM(INDEX(Sampling[Value],1):Sampling[[#This Row],[Value]])-Sampling[[#This Row],[Value]] -> 123902.6 | C32: 022 | D32: 6204.04
A33: 23 | B33: =SUM(INDEX(Sampling[Value],1):Sampling[[#This Row],[Value]])-Sampling[[#This Row],[Value]] -> 130106.64 | C33: 023 | D33: 8833.41
A34: 24 | B34: =SUM(INDEX(Sampling[Value],1):Sampling[[#This Row],[Value]])-Sampling[[#This Row],[Value]] -> 138940.05 | C34: 024 | D34: 9839.58
A35: 25 | B35: =SUM(INDEX(Sampling[Value],1):Sampling[[#This Row],[Value]])-Sampling[[#This Row],[Value]] -> 148779.63 | C35: 025 | D35: 3147.61
A36: 26 | B36: =SUM(INDEX(Sampling[Value],1):Sampling[[#This Row],[Value]])-Sampling[[#This Row],[Value]] -> 151927.24 | C36: 026 | D36: 1673.84
A37: 27 | B37: =SUM(INDEX(Sampling[Value],1):Sampling[[#This Row],[Value]])-Sampling[[#This Row],[Value]] -> 153601.08 | C37: 027 | D37: 1012.69
A38: 28 | B38: =SUM(INDEX(Sampling[Value],1):Sampling[[#This Row],[Value]])-Sampling[[#This Row],[Value]] -> 154613.77 | C38: 028 | D38: 2411.93
A39: 29 | B39: =SUM(INDEX(Sampling[Value],1):Sampling[[#This Row],[Value]])-Sampling[[#This Row],[Value]] -> 157025.7 | C39: 029 | D39: 5693.05
A40: 30 | B40: =SUM(INDEX(Sampling[Value],1):Sampling[[#This Row],[Value]])-Sampling[[#This Row],[Value]] -> 162718.75 | C40: 030 | D40: 8779.68
A41: 31 | B41: =SUM(INDEX(Sampling[Value],1):Sampling[[#This Row],[Value]])-Sampling[[#This Row],[Value]] -> 171498.43 | C41: 031 | D41: 9483.45
A42: 32 | B42: =SUM(INDEX(Sampling[Value],1):Sampling[[#This Row],[Value]])-Sampling[[#This Row],[Value]] -> 180981.88 | C42: 032 | D42: 8071.38
A43: 33 | B43: =SUM(INDEX(Sampling[Value],1):Sampling[[#This Row],[Value]])-Sampling[[#This Row],[Value]] -> 189053.26 | C43: 033 | D43: 1180.11
A44: 34 | B44: =SUM(INDEX(Sampling[Value],1):Sampling[[#This Row],[Value]])-Sampling[[#This Row],[Value]] -> 190233.37 | C44: 034 | D44: 5797.99
A45: 35 | B45: =SUM(INDEX(Sampling[Value],1):Sampling[[#This Row],[Value]])-Sampling[[#This Row],[Value]] -> 196031.36 | C45: 035 | D45: 7384.59
A46: 36 | B46: =SUM(INDEX(Sampling[Value],1):Sampling[[#This Row],[Value]])-Sampling[[#This Row],[Value]] -> 203415.95 | C46: 036 | D46: 9522.87
A47: 37 | B47: =SUM(INDEX(Sampling[Value],1):Sampling[[#This Row],[Value]])-Sampling[[#This Row],[Value]] -> 212938.82 | C47: 037 | D47: 3053.32
A48: 38 | B48: =SUM(INDEX(Sampling[Value],1):Sampling[[#This Row],[Value]])-Sampling[[#This Row],[Value]] -> 215992.14 | C48: 038 | D48: 8077.71
A49: 39 | B49: =SUM(INDEX(Sampling[Value],1):Sampling[[#This Row],[Value]])-Sampling[[#This Row],[Value]] -> 224069.85 | C49: 039 | D49: 6922.07
A50: 40 | B50: =SUM(INDEX(Sampling[Value],1):Sampling[[#This Row],[Value]])-Sampling[[#This Row],[Value]] -> 230991.92 | C50: 040 | D50: 3744.19
A51: 41 | B51: =SUM(INDEX(Sampling[Value],1):Sampling[[#This Row],[Value]])-Sampling[[#This Row],[Value]] -> 234736.11 | C51: 041 | D51: 5793.8
A52: 42 | B52: =SUM(INDEX(Sampling[Value],1):Sampling[[#This Row],[Value]])-Sampling[[#This Row],[Value]] -> 240529.91 | C52: 042 | D52: 4771.17
A53: 43 | B53: =SUM(INDEX(Sampling[Value],1):Sampling[[#This Row],[Value]])-Sampling[[#This Row],[Value]] -> 245301.08 | C53: 043 | D53: 1748.06
A54: 44 | B54: =SUM(INDEX(Sampling[Value],1):Sampling[[#This Row],[Value]])-Sampling[[#This Row],[Value]] -> 247049.14 | C54: 044 | D54: 5747.52
A55: 45 | B55: =SUM(INDEX(Sampling[Value],1):Sampling[[#This Row],[Value]])-Sampling[[#This Row],[Value]] -> 252796.66 | C55: 045 | D55: 9465.04
A56: 46 | B56: =SUM(INDEX(Sampling[Value],1):Sampling[[#This Row],[Value]])-Sampling[[#This Row],[Value]] -> 262261.7 | C56: 046 | D56: 2603.04
A57: 47 | B57: =SUM(INDEX(Sampling[Value],1):Sampling[[#This Row],[Value]])-Sampling[[#This Row],[Value]] -> 264864.74 | C57: 047 | D57: 6720.76
A58: 48 | B58: =SUM(INDEX(Sampling[Value],1):Sampling[[#This Row],[Value]])-Sampling[[#This Row],[Value]] -> 271585.5 | C58: 048 | D58: 9245.65
A59: 49 | B59: =SUM(INDEX(Sampling[Value],1):Sampling[[#This Row],[Value]])-Sampling[[#This Row],[Value]] -> 280831.15 | C59: 049 | D59: 6542.45
A60: 50 | B60: =SUM(INDEX(Sampling[Value],1):Sampling[[#This Row],[Value]])-Sampling[[#This Row],[Value]] -> 287373.6 | C60: 050 | D60: 5337.82
A61: 51 | B61: =SUM(INDEX(Sampling[Value],1):Sampling[[#This Row],[Value]])-Sampling[[#This Row],[Value]] -> 292711.42 | C61: 051 | D61: 5902.66
A62: 52 | B62: =SUM(INDEX(Sampling[Value],1):Sampling[[#This Row],[Value]])-Sampling[[#This Row],[Value]] -> 298614.08 | C62: 052 | D62: 7518.14
A63: 53 | B63: =SUM(INDEX(Sampling[Value],1):Sampling[[#This Row],[Value]])-Sampling[[#This Row],[Value]] -> 306132.22 | C63: 053 | D63: 691.68
A64: 54 | B64: =SUM(INDEX(Sampling[Value],1):Sampling[[#This Row],[Value]])-Sampling[[#This Row],[Value]] -> 306823.9 | C64: 054 | D64: 7031.24
A65: 55 | B65: =SUM(INDEX(Sampling[Value],1):Sampling[[#This Row],[Value]])-Sampling[[#This Row],[Value]] -> 313855.14 | C65: 055 | D65: 6628.26
A66: 56 | B66: =SUM(INDEX(Sampling[Value],1):Sampling[[#This Row],[Value]])-Sampling[[#This Row],[Value]] -> 320483.4 | C66: 056 | D66: 440.4
A67: 57 | B67: =SUM(INDEX(Sampling[Value],1):Sampling[[#This Row],[Value]])-Sampling[[#This Row],[Value]] -> 320923.8 | C67: 057 | D67: 2216.36
A68: 58 | B68: =SUM(INDEX(Sampling[Value],1):Sampling[[#This Row],[Value]])-Sampling[[#This Row],[Value]] -> 323140.16 | C68: 058 | D68: 2316.31
A69: 59 | B69: =SUM(INDEX(Sampling[Value],1):Sampling[[#This Row],[Value]])-Sampling[[#This Row],[Value]] -> 325456.47 | C69: 059 | D69: 3191.04
A70: 60 | B70: =SUM(INDEX(Sampling[Value],1):Sampling[[#This Row],[Value]])-Sampling[[#This Row],[Value]] -> 328647.51 | C70: 060 | D70: 4690.26
A71: 61 | B71: =SUM(INDEX(Sampling[Value],1):Sampling[[#This Row],[Value]])-Sampling[[#This Row],[Value]] -> 333337.77 | C71: 061 | D71: 1868.52
A72: 62 | B72: =SUM(INDEX(Sampling[Value],1):Sampling[[#This Row],[Value]])-Sampling[[#This Row],[Value]] -> 335206.29 | C72: 062 | D72: 7173.51
A73: 63 | B73: =SUM(INDEX(Sampling[Value],1):Sampling[[#This Row],[Value]])-Sampling[[#This Row],[Value]] -> 342379.8 | C73: 063 | D73: 8898.54
A74: 64 | B74: =SUM(INDEX(Sampling[Value],1):Sampling[[#This Row],[Value]])-Sampling[[#This Row],[Value]] -> 351278.34 | C74: 064 | D74: 7550.74
A75: 65 | B75: =SUM(INDEX(Sampling[Value],1):Sampling[[#This Row],[Value]])-Sampling[[#This Row],[Value]] -> 358829.08 | C75: 065 | D75: 9637.79
A76: =ROW()-10 -> 66 | B76: =SUM(INDEX(Sampling[Value],1):Sampling[[#This Row],[Value]])-Sampling[[#This Row],[Value]] -> 368466.87 | C76: 066 | D76: 5111.9
A77: 67 | B77: =SUM(INDEX(Sampling[Value],1):Sampling[[#This Row],[Value]])-Sampling[[#This Row],[Value]] -> 373578.77 | C77: 067 | D77: 3194.32
A78: 68 | B78: =SUM(INDEX(Sampling[Value],1):Sampling[[#This Row],[Value]])-Sampling[[#This Row],[Value]] -> 376773.09 | C78: 068 | D78: 8843.69
A79: 69 | B79: =SUM(INDEX(Sampling[Value],1):Sampling[[#This Row],[Value]])-Sampling[[#This Row],[Value]] -> 385616.78 | C79: 069 | D79: 1404.63
A80: 70 | B80: =SUM(INDEX(Sampling[Value],1):Sampling[[#This Row],[Value]])-Sampling[[#This Row],[Value]] -> 387021.41 | C80: 070 | D80: 9398.11
A81: 71 | B81: =SUM(INDEX(Sampling[Value],1):Sampling[[#This Row],[Value]])-Sampling[[#This Row],[Value]] -> 396419.52 | C81: 071 | D81: 7146.29
A82: 72 | B82: =SUM(INDEX(Sampling[Value],1):Sampling[[#This Row],[Value]])-Sampling[[#This Row],[Value]] -> 403565.81 | C82: 072 | D82: 1175.15
A83: 73 | B83: =SUM(INDEX(Sampling[Value],1):Sampling[[#This Row],[Value]])-Sampling[[#This Row],[Value]] -> 404740.96 | C83: 073 | D83: 6780.46
A84: 74 | B84: =SUM(INDEX(Sampling[Value],1):Sampling[[#This Row],[Value]])-Sampling[[#This Row],[Value]] -> 411521.42 | C84: 074 | D84: 474.06
A85: 75 | B85: =SUM(INDEX(Sampling[Value],1):Sampling[[#This Row],[Value]])-Sampling[[#This Row],[Value]] -> 411995.48 | C85: 075 | D85: 1216.68
A86: 76 | B86: =SUM(INDEX(Sampling[Value],1):Sampling[[#This Row],[Value]])-Sampling[[#This Row],[Value]] -> 413212.16 | C86: 076 | D86: 3514.68
A87: 77 | B87: =SUM(INDEX(Sampling[Value],1):Sampling[[#This Row],[Value]])-Sampling[[#This Row],[Value]] -> 416726.84 | C87: 077 | D87: 7822.04
A88: 78 | B88: =SUM(INDEX(Sampling[Value],1):Sampling[[#This Row],[Value]])-Sampling[[#This Row],[Value]] -> 424548.88 | C88: 078 | D88: 6260.82
A89: 79 | B89: =SUM(INDEX(Sampling[Value],1):Sampling[[#This Row],[Value]])-Sampling[[#This Row],[Value]] -> 430809.7 | C89: 079 | D89: 6242.3
A90: 80 | B90: =SUM(INDEX(Sampling[Value],1):Sampling[[#This Row],[Value]])-Sampling[[#This Row],[Value]] -> 437052 | C90: 080 | D90: 8789.3
A91: 81 | B91: =SUM(INDEX(Sampling[Value],1):Sampling[[#This Row],[Value]])-Sampling[[#This Row],[Value]] -> 445841.3 | C91: 081 | D91: 2178.95
A92: 82 | B92: =SUM(INDEX(Sampling[Value],1):Sampling[[#This Row],[Value]])-Sampling[[#This Row],[Value]] -> 448020.25 | C92: 082 | D92: 4758.16
A93: 83 | B93: =SUM(INDEX(Sampling[Value],1):Sampling[[#This Row],[Value]])-Sampling[[#This Row],[Value]] -> 452778.41 | C93: 083 | D93: 937.7
A94: 84 | B94: =SUM(INDEX(Sampling[Value],1):Sampling[[#This Row],[Value]])-Sampling[[#This Row],[Value]] -> 453716.11 | C94: 084 | D94: 225.47
A95: 85 | B95: =SUM(INDEX(Sampling[Value],1):Sampling[[#This Row],[Value]])-Sampling[[#This Row],[Value]] -> 453941.58 | C95: 085 | D95: 5463.23
A96: 86 | B96: =SUM(INDEX(Sampling[Value],1):Sampling[[#This Row],[Value]])-Sampling[[#This Row],[Value]] -> 459404.81 | C96: 086 | D96: 4876.96
A97: 87 | B97: =SUM(INDEX(Sampling[Value],1):Sampling[[#This Row],[Value]])-Sampling[[#This Row],[Value]] -> 464281.77 | C97: 087 | D97: 9790.61
A98: 88 | B98: =SUM(INDEX(Sampling[Value],1):Sampling[[#This Row],[Value]])-Sampling[[#This Row],[Value]] -> 474072.38 | C98: 088 | D98: 9489.02
A99: 89 | B99: =SUM(INDEX(Sampling[Value],1):Sampling[[#This Row],[Value]])-Sampling[[#This Row],[Value]] -> 483561.4 | C99: 089 | D99: 2825.96
A100: 90 | B100: =SUM(INDEX(Sampling[Value],1):Sampling[[#This Row],[Value]])-Sampling[[#This Row],[Value]] -> 486387.36 | C100: 090 | D100: 4519.61
A101: 91 | B101: =SUM(INDEX(Sampling[Value],1):Sampling[[#This Row],[Value]])-Sampling[[#This Row],[Value]] -> 490906.97 | C101: 091 | D101: 9945.01
A102: 92 | B102: =SUM(INDEX(Sampling[Value],1):Sampling[[#This Row],[Value]])-Sampling[[#This Row],[Value]] -> 500851.98 | C102: 092 | D102: 906.45
A103: 93 | B103: =SUM(INDEX(Sampling[Value],1):Sampling[[#This Row],[Value]])-Sampling[[#This Row],[Value]] -> 501758.43 | C103: 093 | D103: 7222.76
A104: 94 | B104: =SUM(INDEX(Sampling[Value],1):Sampling[[#This Row],[Value]])-Sampling[[#This Row],[Value]] -> 508981.19 | C104: 094 | D104: 5474.24
A105: 95 | B105: =SUM(INDEX(Sampling[Value],1):Sampling[[#This Row],[Value]])-Sampling[[#This Row],[Value]] -> 514455.43 | C105: 095 | D105: 4087.76
A106: 96 | B106: =SUM(INDEX(Sampling[Value],1):Sampling[[#This Row],[Value]])-Sampling[[#This Row],[Value]] -> 518543.19 | C106: 096 | D106: 3307.98
A107: 97 | B107: =SUM(INDEX(Sampling[Value],1):Sampling[[#This Row],[Value]])-Sampling[[#This Row],[Value]] -> 521851.17 | C107: 097 | D107: 481.05
A108: 98 | B108: =SUM(INDEX(Sampling[Value],1):Sampling[[#This Row],[Value]])-Sampling[[#This Row],[Value]] -> 522332.22 | C108: 098 | D108: 1190.2
A109: 99 | B109: =SUM(INDEX(Sampling[Value],1):Sampling[[#This Row],[Value]])-Sampling[[#This Row],[Value]] -> 523522.42 | C109: 099 | D109: 6428.55
A110: 100 | B110: =SUM(INDEX(Sampling[Value],1):Sampling[[#This Row],[Value]])-Sampling[[#This Row],[Value]] -> 529950.97 | C110: 100 | D110: 5378.18

Sheet Binomial calculator
B2: This sheet demonstrates how to compute simple error rate statistics using the binomial distribution.
B3: The user can enter their presumed (or target) error rate for the items being sampled, along with the number of errors found in the sample examined.
B4: The statistics then compute how likely the observed facts would be for the presumed error rate.
B5: A low probability means that the actual error rate is probably higher.
B6: If further evidence is required to show that the error rate really is at the presumed level, then the sample must be extended.
B8: Presumed error rate: | C8: 0.05
B9: Sample size: | C9: =ROWS(Picked[]) -> 1
B10: Actual number of errors: | C10: 2
B11: Probability of observed number of errors: | C11: =_xlfn.BINOM.DIST(C10,C9,C8,FALSE) -> 
B12: Probability of this number of errors or fewer: | C12: =_xlfn.BINOM.DIST(C10,C9,C8,TRUE) -> 
B14: Full population size: | C14: ='Sampling template'!D2 -> 100
B16: Probability of numbers of errors in the total population: | C16: Number | D16: Exactly this many | E16: This many or fewer
B17: (based on presumed error rate) | C17: =C18-1 -> 3 | D17: =_xlfn.BINOM.DIST(C17,$C$14,$C$8,FALSE) -> 0.1395756779 | E17: =_xlfn.BINOM.DIST(C17,$C$14,$C$8,TRUE) -> 0.2578386591
C18: =C19-1 -> 4 | D18: =_xlfn.BINOM.DIST(C18,$C$14,$C$8,FALSE) -> 0.1781426416 | E18: =_xlfn.BINOM.DIST(C18,$C$14,$C$8,TRUE) -> 0.4359813007
C19: =ROUND(C14*C8,0) -> 5 | D19: 0.1800178273 | E19: 0.615999128
C20: =C19+1 -> 6 | D20: 0.1500148561 | E20: 0.766013984
C21: =C20+1 -> 7 | D21: 0.1060255374 | E21: 0.8720395214
